[Event "Early-Titled-Tuesday-Blitz-September-12-2023"]
[Site "Chess.com"]
[Date "2023.09.12"]
[Round "4"]
[White "KatakuriDono"]
[Black "HajiyevKanan"]
[Result "0-1"]
[WhiteElo "2321"]
[BlackElo "2519"]
[TimeControl "180+1"]
[EndTime "8:36:08 PDT"]
[Termination "HajiyevKanan won by resignation"]

1. d4 {[%clk 0:03:00.9]} 1... c6 {[%clk 0:03:00.6]} 2. c4 {[%clk 0:03:01.2]}
2... d5 {[%clk 0:03:01.5]} 3. Nc3 {[%clk 0:03:01.3]} 3... a6 {[%clk 0:03:02.2]}
4. cxd5 {[%clk 0:02:57.9]} 4... cxd5 {[%clk 0:03:03.1]} 5. Nf3 {[%clk 0:02:58]}
5... Nf6 {[%clk 0:03:03.9]} 6. Bg5 {[%clk 0:02:57.9]} 6... Nc6 {[%clk
0:03:04.8]} 7. Bxf6 {[%clk 0:02:57]} 7... gxf6 {[%clk 0:03:05.7]} 8. e3 {[%clk
0:02:57.4]} 8... Bg4 {[%clk 0:03:03.9]} 9. Be2 {[%clk 0:02:57.2]} 9... e6 {[%clk
0:03:03.9]} 10. h3 {[%clk 0:02:53.4]} 10... Bh5 {[%clk 0:03:03.6]} 11. a3 {[%clk
0:02:50.5]} 11... Bd6 {[%clk 0:03:03.6]} 12. g4 {[%clk 0:02:46.8]} 12... Bg6
{[%clk 0:03:03.5]} 13. h4 {[%clk 0:02:47.5]} 13... h5 {[%clk 0:03:02.8]} 14. g5
{[%clk 0:02:43.5]} 14... f5 {[%clk 0:02:58.4]} 15. Nd2 {[%clk 0:02:19.8]} 15...
f4 {[%clk 0:02:55.3]} 16. Nb3 {[%clk 0:02:09.3]} 16... fxe3 {[%clk 0:02:51.3]}
17. fxe3 {[%clk 0:02:10.2]} 17... Bg3+ {[%clk 0:02:51.6]} 18. Kf1 {[%clk
0:02:10.3]} 18... f6 {[%clk 0:02:39]} 19. Kg2 {[%clk 0:02:08.6]} 19... Bd6
{[%clk 0:02:32.9]} 20. Bd3 {[%clk 0:02:07.2]} 20... Rg8 {[%clk 0:02:20.9]} 21.
Bxg6+ {[%clk 0:01:59.7]} 21... Rxg6 {[%clk 0:02:21.8]} 22. Qd3 {[%clk
0:01:59.2]} 22... Rg7 {[%clk 0:02:15.2]} 23. e4 {[%clk 0:01:39.3]} 23... fxg5
{[%clk 0:02:10.4]} 24. e5 {[%clk 0:01:39.8]} 24... gxh4+ {[%clk 0:02:10]} 25.
Kf2 {[%clk 0:01:34.5]} 25... Bxe5 {[%clk 0:01:40.8]} 26. dxe5 {[%clk 0:01:34.1]}
26... Nxe5 {[%clk 0:01:41.5]} 27. Qd4 {[%clk 0:01:29.4]} 27... Qf6+ {[%clk
0:01:40.5]} 28. Ke2 {[%clk 0:01:14.9]} 28... Qf3+ {[%clk 0:01:23.7]} 29. Kd2
{[%clk 0:01:04.2]} 29... Rg2+ {[%clk 0:01:22.9]} 0-1

[Event "Early-Titled-Tuesday-Blitz-September-12-2023"]
[Site "Chess.com"]
[Date "2023.09.12"]
[Round "4"]
[White "LUISMIGUELOV"]
[Black "Mr_Lion22"]
[Result "1-0"]
[WhiteElo "2118"]
[BlackElo "2428"]
[TimeControl "180+1"]
[EndTime "8:36:14 PDT"]
[Termination "LUISMIGUELOV won by resignation"]

1. d4 {[%clk 0:03:00.9]} 1... Nf6 {[%clk 0:02:54.8]} 2. c3 {[%clk 0:02:57.4]}
2... g6 {[%clk 0:02:54.9]} 3. Bg5 {[%clk 0:02:56.8]} 3... Bg7 {[%clk 0:02:54.9]}
4. Nd2 {[%clk 0:02:56.6]} 4... O-O {[%clk 0:02:55]} 5. Ngf3 {[%clk 0:02:55.8]}
5... c5 {[%clk 0:02:53.4]} 6. e3 {[%clk 0:02:54.9]} 6... Nc6 {[%clk 0:02:52.8]}
7. Bd3 {[%clk 0:02:54.5]} 7... d6 {[%clk 0:02:52.7]} 8. h4 {[%clk 0:02:49.7]}
8... h6 {[%clk 0:02:52.1]} 9. Bf4 {[%clk 0:02:46.8]} 9... cxd4 {[%clk
0:02:44.7]} 10. exd4 {[%clk 0:02:45.2]} 10... e5 {[%clk 0:02:45.1]} 11. Be3
{[%clk 0:02:20.9]} 11... Re8 {[%clk 0:02:43.7]} 12. dxe5 {[%clk 0:02:14.8]}
12... dxe5 {[%clk 0:02:44.6]} 13. Bc4 {[%clk 0:02:10.1]} 13... e4 {[%clk
0:02:42.3]} 14. Nd4 {[%clk 0:02:09]} 14... Ne5 {[%clk 0:02:42.7]} 15. Be2 {[%clk
0:02:01.8]} 15... Nfg4 {[%clk 0:02:38.4]} 16. Nxe4 {[%clk 0:01:43.3]} 16... f5
{[%clk 0:02:35.8]} 17. Nc5 {[%clk 0:01:23.9]} 17... f4 {[%clk 0:02:19.1]} 18.
Bxf4 {[%clk 0:01:18.4]} 18... b6 {[%clk 0:02:12.5]} 19. Bxe5 {[%clk 0:00:55.3]}
19... Rxe5 {[%clk 0:02:05.5]} 20. Nd3 {[%clk 0:00:54.1]} 20... Re4 {[%clk
0:02:00.6]} 21. f3 {[%clk 0:00:49.8]} 21... Bxd4 {[%clk 0:01:47.6]} 22. cxd4
{[%clk 0:00:40.8]} 22... Qxd4 {[%clk 0:01:37.3]} 23. fxe4 {[%clk 0:00:36.2]}
23... Qf2+ {[%clk 0:01:29.8]} 24. Nxf2 {[%clk 0:00:35.1]} 1-0

[Event "Early-Titled-Tuesday-Blitz-September-12-2023"]
[Site "Chess.com"]
[Date "2023.09.12"]
[Round "4"]
[White "play1ngtheangel"]
[Black "Eloist"]
[Result "1-0"]
[WhiteElo "2668"]
[BlackElo "2477"]
[TimeControl "180+1"]
[EndTime "8:36:18 PDT"]
[Termination "play1ngtheangel won by resignation"]

1. e4 {[%clk 0:03:00.9]} 1... e6 {[%clk 0:02:59.6]} 2. d4 {[%clk 0:03:00.6]}
2... d5 {[%clk 0:02:59.5]} 3. Nd2 {[%clk 0:03:01.2]} 3... c5 {[%clk 0:02:59]} 4.
exd5 {[%clk 0:03:01.9]} 4... Qxd5 {[%clk 0:02:58.5]} 5. Ngf3 {[%clk 0:03:02.6]}
5... cxd4 {[%clk 0:02:58.1]} 6. Bc4 {[%clk 0:03:03.3]} 6... Qd6 {[%clk
0:02:57.6]} 7. O-O {[%clk 0:03:04]} 7... Nf6 {[%clk 0:02:57.2]} 8. Re1 {[%clk
0:03:04.7]} 8... Nc6 {[%clk 0:02:56.1]} 9. Ne4 {[%clk 0:03:05.2]} 9... Nxe4
{[%clk 0:02:55.5]} 10. Rxe4 {[%clk 0:03:06.1]} 10... Qb4 {[%clk 0:02:32.7]} 11.
b3 {[%clk 0:02:42.9]} 11... Bc5 {[%clk 0:02:27.4]} 12. Bb2 {[%clk 0:02:30.5]}
12... O-O {[%clk 0:02:21.1]} 13. a3 {[%clk 0:02:28.4]} 13... Qb6 {[%clk
0:02:18.3]} 14. b4 {[%clk 0:02:28.8]} 14... Be7 {[%clk 0:02:15.3]} 15. Nxd4
{[%clk 0:02:28.7]} 15... Nxd4 {[%clk 0:02:09.8]} 16. Bxd4 {[%clk 0:02:28.6]}
16... Qc6 {[%clk 0:02:08.3]} 17. Bd3 {[%clk 0:02:16]} 17... f5 {[%clk
0:01:52.5]} 18. Re3 {[%clk 0:02:10.8]} 18... Rd8 {[%clk 0:01:48.1]} 19. Bb2
{[%clk 0:02:02]} 19... Bd7 {[%clk 0:01:17.8]} 20. Bxf5 {[%clk 0:02:01.4]} 20...
Bg5 {[%clk 0:01:10.9]} 21. Qh5 {[%clk 0:02:01.6]} 21... exf5 {[%clk 0:00:54.7]}
22. Qxg5 {[%clk 0:01:59.7]} 22... Qg6 {[%clk 0:00:54]} 23. Qxg6 {[%clk
0:01:58.8]} 23... hxg6 {[%clk 0:00:53.6]} 24. Re7 {[%clk 0:01:59.7]} 24... Bc6
{[%clk 0:00:47.5]} 25. Rxg7+ {[%clk 0:01:58.1]} 25... Kf8 {[%clk 0:00:47.6]} 26.
Rxg6 {[%clk 0:01:57.3]} 26... Rd2 {[%clk 0:00:44.6]} 27. Rf6+ {[%clk 0:01:52.8]}
27... Kg8 {[%clk 0:00:41.9]} 28. Rxf5 {[%clk 0:01:52]} 28... Rxc2 {[%clk
0:00:41.1]} 29. Rg5+ {[%clk 0:01:52.6]} 29... Kf8 {[%clk 0:00:39.4]} 30. Bd4
{[%clk 0:01:51.4]} 30... Rd8 {[%clk 0:00:36.3]} 31. Bxa7 {[%clk 0:01:50.8]}
31... Ra2 {[%clk 0:00:34.3]} 32. Bc5+ {[%clk 0:01:50.7]} 32... Kf7 {[%clk
0:00:34.3]} 33. Re1 {[%clk 0:01:49.1]} 33... Rxa3 {[%clk 0:00:28.8]} 34. b5
{[%clk 0:01:46.9]} 1-0

[Event "Early-Titled-Tuesday-Blitz-September-12-2023"]
[Site "Chess.com"]
[Date "2023.09.12"]
[Round "4"]
[White "chess123456s"]
[Black "jup1978"]
[Result "0-1"]
[WhiteElo "2619"]
[BlackElo "2483"]
[TimeControl "180+1"]
[EndTime "8:36:20 PDT"]
[Termination "jup1978 won by resignation"]

1. e4 {[%clk 0:03:00.9]} 1... e5 {[%clk 0:02:59.8]} 2. Nf3 {[%clk 0:03:01.5]}
2... Nf6 {[%clk 0:03:00]} 3. d4 {[%clk 0:03:00.6]} 3... Nxe4 {[%clk 0:02:58.4]}
4. Bd3 {[%clk 0:03:00.9]} 4... d5 {[%clk 0:02:58.6]} 5. Nxe5 {[%clk 0:03:01.2]}
5... Nd7 {[%clk 0:02:55.1]} 6. Nc3 {[%clk 0:03:01.2]} 6... Nxc3 {[%clk
0:02:51.8]} 7. bxc3 {[%clk 0:03:01.3]} 7... Nxe5 {[%clk 0:02:50.5]} 8. dxe5
{[%clk 0:03:02.2]} 8... Bc5 {[%clk 0:02:49.6]} 9. O-O {[%clk 0:03:02.3]} 9...
Be6 {[%clk 0:02:48.9]} 10. Rb1 {[%clk 0:03:02.2]} 10... Qd7 {[%clk 0:02:43]} 11.
Qf3 {[%clk 0:02:30.4]} 11... O-O-O {[%clk 0:02:38.4]} 12. Be3 {[%clk 0:02:30.1]}
12... Qe7 {[%clk 0:02:29.5]} 13. a4 {[%clk 0:02:23]} 13... h5 {[%clk 0:02:20.9]}
14. h3 {[%clk 0:02:16.1]} 14... g5 {[%clk 0:02:18.5]} 15. Bxc5 {[%clk
0:02:12.1]} 15... Qxc5 {[%clk 0:02:17.3]} 16. Bf5 {[%clk 0:02:10.1]} 16... Rdg8
{[%clk 0:02:07.9]} 17. Bxe6+ {[%clk 0:02:07.3]} 17... fxe6 {[%clk 0:02:08.8]}
18. Qf7 {[%clk 0:02:07.7]} 18... Re8 {[%clk 0:02:04.3]} 19. Rb3 {[%clk
0:01:51.9]} 19... g4 {[%clk 0:02:03.2]} 20. h4 {[%clk 0:01:51.1]} 20... g3
{[%clk 0:02:01.1]} 21. Qf3 {[%clk 0:01:48.9]} 21... gxf2+ {[%clk 0:01:58]} 22.
Qxf2 {[%clk 0:01:49.8]} 22... Qxf2+ {[%clk 0:01:56.3]} 23. Rxf2 {[%clk
0:01:50.7]} 23... Ref8 {[%clk 0:01:56.4]} 24. Rb4 {[%clk 0:01:44.1]} 24... Rxf2
{[%clk 0:01:55.8]} 25. Kxf2 {[%clk 0:01:45]} 25... Rf8+ {[%clk 0:01:55.9]} 26.
Kg3 {[%clk 0:01:45.2]} 26... Rf5 {[%clk 0:01:55.6]} 27. Rf4 {[%clk 0:01:34.9]}
27... Rxe5 {[%clk 0:01:53.9]} 28. Rf8+ {[%clk 0:01:31.9]} 28... Kd7 {[%clk
0:01:53.8]} 29. Kf4 {[%clk 0:01:32.4]} 29... Re4+ {[%clk 0:01:51.3]} 30. Kg5
{[%clk 0:01:31.5]} 30... Rg4+ {[%clk 0:01:44.4]} 31. Kxh5 {[%clk 0:01:32]} 31...
Rxg2 {[%clk 0:01:45]} 32. Kh6 {[%clk 0:01:32.8]} 32... Rxc2 {[%clk 0:01:44.9]}
33. Rf3 {[%clk 0:01:29]} 33... Rh2 {[%clk 0:01:43.8]} 34. h5 {[%clk 0:01:29.3]}
34... e5 {[%clk 0:01:42.7]} 35. Kg6 {[%clk 0:01:29.1]} 35... e4 {[%clk 0:01:40]}
36. Rg3 {[%clk 0:01:29]} 36... c5 {[%clk 0:01:35]} 37. h6 {[%clk 0:01:28.7]}
37... Kd6 {[%clk 0:01:35.5]} 38. h7 {[%clk 0:01:26.4]} 38... d4 {[%clk
0:01:35.2]} 39. cxd4 {[%clk 0:01:26.6]} 39... cxd4 {[%clk 0:01:36.1]} 40. Kg7
{[%clk 0:01:27.3]} 40... e3 {[%clk 0:01:32.5]} 41. Rg6+ {[%clk 0:01:27]} 41...
Kc5 {[%clk 0:01:24.3]} 42. Rh6 {[%clk 0:01:24.5]} 42... Rxh6 {[%clk 0:01:24]}
43. Kxh6 {[%clk 0:01:25.4]} 43... e2 {[%clk 0:01:24]} 44. h8=Q {[%clk
0:01:26.1]} 44... e1=Q {[%clk 0:01:24.6]} 45. Qc8+ {[%clk 0:01:26.8]} 45... Kd6
{[%clk 0:01:19.7]} 46. Qxb7 {[%clk 0:01:24.9]} 46... Qe6+ {[%clk 0:01:18.7]} 0-1

[Event "Early-Titled-Tuesday-Blitz-September-12-2023"]
[Site "Chess.com"]
[Date "2023.09.12"]
[Round "4"]
[White "Srisshhhtea"]
[Black "SashaKuzhilniy"]
[Result "1-0"]
[WhiteElo "2433"]
[BlackElo "2624"]
[TimeControl "180+1"]
[EndTime "8:36:32 PDT"]
[Termination "Srisshhhtea won by resignation"]

1. d4 {[%clk 0:02:55.8]} 1... Nf6 {[%clk 0:03:00.3]} 2. c4 {[%clk 0:02:55.6]}
2... e5 {[%clk 0:03:00.9]} 3. dxe5 {[%clk 0:02:55.3]} 3... Ng4 {[%clk
0:03:01.5]} 4. Bf4 {[%clk 0:02:55.1]} 4... Nc6 {[%clk 0:02:57.2]} 5. Nf3 {[%clk
0:02:53.8]} 5... Bb4+ {[%clk 0:02:50.7]} 6. Nc3 {[%clk 0:02:53.4]} 6... Bxc3+
{[%clk 0:02:49.2]} 7. bxc3 {[%clk 0:02:54.3]} 7... Qe7 {[%clk 0:02:49.9]} 8. Qd5
{[%clk 0:02:54.1]} 8... f6 {[%clk 0:02:48.7]} 9. exf6 {[%clk 0:02:52.8]} 9...
Nxf6 {[%clk 0:02:49.6]} 10. Qd3 {[%clk 0:02:53.3]} 10... d6 {[%clk 0:02:49.7]}
11. e3 {[%clk 0:02:52.5]} 11... O-O {[%clk 0:02:48.4]} 12. Be2 {[%clk
0:02:53.1]} 12... Ne4 {[%clk 0:02:44.2]} 13. Nd4 {[%clk 0:02:48.3]} 13... Nc5
{[%clk 0:02:38.8]} 14. Qb1 {[%clk 0:02:46.3]} 14... Ne5 {[%clk 0:02:31.1]} 15.
O-O {[%clk 0:02:44.1]} 15... Kh8 {[%clk 0:02:24.9]} 16. Bg3 {[%clk 0:02:43.3]}
16... b6 {[%clk 0:02:21.5]} 17. a4 {[%clk 0:02:43.1]} 17... a5 {[%clk
0:02:20.7]} 18. Re1 {[%clk 0:02:33.8]} 18... Bb7 {[%clk 0:02:18.2]} 19. Bf1
{[%clk 0:02:32.9]} 19... Rae8 {[%clk 0:02:08]} 20. e4 {[%clk 0:02:27.6]} 20...
Qf7 {[%clk 0:01:55.8]} 21. f4 {[%clk 0:02:13.8]} 21... Ng6 {[%clk 0:01:28.2]}
22. e5 {[%clk 0:02:14.7]} 22... Nxf4 {[%clk 0:01:21.3]} 23. exd6 {[%clk
0:02:07.4]} 23... Rxe1 {[%clk 0:01:16.2]} 24. Qxe1 {[%clk 0:02:08.3]} 24... cxd6
{[%clk 0:01:15]} 25. Rb1 {[%clk 0:02:07.5]} 25... Nxa4 {[%clk 0:01:00.3]} 26.
Bxf4 {[%clk 0:01:55.8]} 26... Qxf4 {[%clk 0:01:01.2]} 27. Ne6 {[%clk 0:01:55.8]}
27... Qf6 {[%clk 0:00:51.2]} 28. Nxf8 {[%clk 0:01:54.1]} 28... Qxf8 {[%clk
0:00:52.1]} 29. Qe6 {[%clk 0:01:39.2]} 29... Nc5 {[%clk 0:00:48.5]} 30. Qe3
{[%clk 0:01:34.1]} 30... a4 {[%clk 0:00:41]} 31. Rxb6 {[%clk 0:01:33.6]} 31...
Qd8 {[%clk 0:00:40.1]} 32. Rxd6 {[%clk 0:01:25.2]} 32... Qc8 {[%clk 0:00:35.2]}
33. Qxc5 {[%clk 0:01:24.2]} 1-0

[Event "Early-Titled-Tuesday-Blitz-September-12-2023"]
[Site "Chess.com"]
[Date "2023.09.12"]
[Round "4"]
[White "Boxerandchessplayer"]
[Black "Aleksandar-Topalov"]
[Result "0-1"]
[WhiteElo "2106"]
[BlackElo "2339"]
[TimeControl "180+1"]
[EndTime "8:36:41 PDT"]
[Termination "Aleksandar-Topalov won on time"]

1. d4 {[%clk 0:02:57]} 1... e6 {[%clk 0:02:58.7]} 2. Nf3 {[%clk 0:02:52]} 2...
f5 {[%clk 0:02:57.8]} 3. c4 {[%clk 0:02:43.7]} 3... Nf6 {[%clk 0:02:57.3]} 4. g3
{[%clk 0:02:43.5]} 4... Be7 {[%clk 0:02:54.1]} 5. Bg2 {[%clk 0:02:44.4]} 5...
O-O {[%clk 0:02:54.4]} 6. O-O {[%clk 0:02:45]} 6... d6 {[%clk 0:02:54.5]} 7. Nc3
{[%clk 0:02:45.5]} 7... Ne4 {[%clk 0:02:54.6]} 8. Ne1 {[%clk 0:02:35]} 8... Nxc3
{[%clk 0:02:47.5]} 9. bxc3 {[%clk 0:02:34.1]} 9... Nc6 {[%clk 0:02:47.5]} 10.
Nd3 {[%clk 0:02:28.4]} 10... e5 {[%clk 0:02:30.8]} 11. Bxc6 {[%clk 0:02:17.4]}
11... bxc6 {[%clk 0:02:30.2]} 12. dxe5 {[%clk 0:02:18]} 12... dxe5 {[%clk
0:02:30.4]} 13. Nxe5 {[%clk 0:02:18]} 13... Qe8 {[%clk 0:02:29.5]} 14. Nd3
{[%clk 0:01:44.6]} 14... Be6 {[%clk 0:02:13.7]} 15. Qa4 {[%clk 0:00:16]} 15...
Bf6 {[%clk 0:02:03]} 16. Bf4 {[%clk 0:00:12]} 16... Bxc3 {[%clk 0:01:47.5]} 17.
Rac1 {[%clk 0:00:09.1]} 17... Bd4 {[%clk 0:01:40.9]} 18. Bxc7 {[%clk 0:00:06.7]}
18... g5 {[%clk 0:01:27.8]} 19. Be5 {[%clk 0:00:03]} 19... c5 {[%clk 0:01:16]}
20. Bxd4 {[%clk 0:00:02.5]} 20... Qxa4 {[%clk 0:01:15.3]} 0-1

[Event "Early-Titled-Tuesday-Blitz-September-12-2023"]
[Site "Chess.com"]
[Date "2023.09.12"]
[Round "4"]
[White "bardiya_Daneshvar"]
[Black "GaiozNigalidze"]
[Result "1-0"]
[WhiteElo "2938"]
[BlackElo "2723"]
[TimeControl "180+1"]
[EndTime "8:36:50 PDT"]
[Termination "bardiya_Daneshvar won by resignation"]

1. d3 {[%clk 0:02:59.9]} 1... d5 {[%clk 0:02:58.5]} 2. Nd2 {[%clk 0:03:00.8]}
2... Nf6 {[%clk 0:02:58.9]} 3. Nb3 {[%clk 0:03:00.2]} 3... e5 {[%clk 0:02:58.7]}
4. g3 {[%clk 0:02:59.1]} 4... Be7 {[%clk 0:02:58.4]} 5. Bg2 {[%clk 0:02:59.7]}
5... h5 {[%clk 0:02:54.8]} 6. h4 {[%clk 0:02:58.2]} 6... c6 {[%clk 0:02:54.6]}
7. Nh3 {[%clk 0:02:58.5]} 7... Bg4 {[%clk 0:02:52.5]} 8. Ng5 {[%clk 0:02:58.4]}
8... a5 {[%clk 0:02:52.4]} 9. Rb1 {[%clk 0:02:57]} 9... a4 {[%clk 0:02:48.8]}
10. Na1 {[%clk 0:02:57.1]} 10... Na6 {[%clk 0:02:42.9]} 11. c3 {[%clk
0:02:56.9]} 11... Nc5 {[%clk 0:02:35.4]} 12. Nc2 {[%clk 0:02:54.5]} 12... Qc7
{[%clk 0:02:30.1]} 13. Be3 {[%clk 0:02:51.3]} 13... Qa5 {[%clk 0:02:21.1]} 14.
Qd2 {[%clk 0:02:47.8]} 14... Qc7 {[%clk 0:02:16.9]} 15. O-O {[%clk 0:02:44.8]}
15... Ne6 {[%clk 0:02:07.7]} 16. Nxe6 {[%clk 0:02:39]} 16... Bxe6 {[%clk
0:02:06.9]} 17. Bg5 {[%clk 0:02:39.5]} 17... Ng4 {[%clk 0:02:01.1]} 18. Bxe7
{[%clk 0:02:37.1]} 18... Qxe7 {[%clk 0:02:02]} 19. Ne3 {[%clk 0:02:35.2]} 19...
Nxe3 {[%clk 0:01:43.6]} 20. Qxe3 {[%clk 0:02:36.1]} 20... f6 {[%clk 0:01:40.9]}
21. Bf3 {[%clk 0:02:31.5]} 21... Bf7 {[%clk 0:01:24.7]} 22. b4 {[%clk
0:02:24.5]} 22... axb3 {[%clk 0:01:23]} 23. axb3 {[%clk 0:02:25.4]} 23... O-O
{[%clk 0:01:22.9]} 24. Ra1 {[%clk 0:02:25.4]} 24... Qc7 {[%clk 0:01:07]} 25. c4
{[%clk 0:02:21.9]} 25... d4 {[%clk 0:01:01.8]} 26. Qd2 {[%clk 0:02:18.9]} 26...
Qe7 {[%clk 0:00:42.8]} 27. Be4 {[%clk 0:02:13.5]} 27... g6 {[%clk 0:00:39.7]}
28. b4 {[%clk 0:02:13.3]} 28... Kg7 {[%clk 0:00:37.6]} 29. b5 {[%clk 0:02:12.8]}
29... cxb5 {[%clk 0:00:33.3]} 30. cxb5 {[%clk 0:02:13.7]} 30... Rxa1 {[%clk
0:00:30.9]} 31. Rxa1 {[%clk 0:02:14.6]} 31... b6 {[%clk 0:00:31]} 32. Bc6 {[%clk
0:02:07.5]} 32... Be8 {[%clk 0:00:22.4]} 33. Qc2 {[%clk 0:02:03.5]} 33... Bf7
{[%clk 0:00:17.3]} 34. Ra6 {[%clk 0:01:59.5]} 34... Rb8 {[%clk 0:00:17.1]} 35.
Qa4 {[%clk 0:01:58.9]} 35... Qc5 {[%clk 0:00:14.2]} 36. Ra7 {[%clk 0:01:58.6]}
36... Rf8 {[%clk 0:00:12.6]} 37. Kg2 {[%clk 0:01:53.2]} 37... g5 {[%clk
0:00:12.2]} 38. Qa3 {[%clk 0:01:50.9]} 38... gxh4 {[%clk 0:00:10.7]} 39. Qxc5
{[%clk 0:01:50.5]} 39... bxc5 {[%clk 0:00:11.2]} 40. Bd5 {[%clk 0:01:47.9]}
40... Kg6 {[%clk 0:00:11.7]} 41. Bxf7+ {[%clk 0:01:44.3]} 1-0

[Event "Early-Titled-Tuesday-Blitz-September-12-2023"]
[Site "Chess.com"]
[Date "2023.09.12"]
[Round "4"]
[White "DmitryMaximov"]
[Black "Shield12"]
[Result "0-1"]
[WhiteElo "2735"]
[BlackElo "2970"]
[TimeControl "180+1"]
[EndTime "8:36:50 PDT"]
[Termination "Shield12 won by resignation"]

1. e4 {[%clk 0:03:00.9]} 1... c5 {[%clk 0:03:00.3]} 2. Nf3 {[%clk 0:03:01]} 2...
e6 {[%clk 0:03:00.9]} 3. c3 {[%clk 0:03:01.1]} 3... Nf6 {[%clk 0:02:59.3]} 4.
Bd3 {[%clk 0:03:01.4]} 4... d5 {[%clk 0:02:58.3]} 5. e5 {[%clk 0:03:01.8]} 5...
Nfd7 {[%clk 0:02:59]} 6. Bc2 {[%clk 0:03:02.5]} 6... c4 {[%clk 0:02:59]} 7. b3
{[%clk 0:03:02.3]} 7... Nc6 {[%clk 0:02:58.6]} 8. Qe2 {[%clk 0:03:01.9]} 8...
Qc7 {[%clk 0:02:55.7]} 9. bxc4 {[%clk 0:03:00.7]} 9... dxc4 {[%clk 0:02:56.6]}
10. Qxc4 {[%clk 0:02:58]} 10... Ndxe5 {[%clk 0:02:56.8]} 11. Nxe5 {[%clk
0:02:51.5]} 11... Qxe5+ {[%clk 0:02:57.7]} 12. Kf1 {[%clk 0:02:49.8]} 12... Be7
{[%clk 0:02:55.2]} 13. d4 {[%clk 0:02:46.6]} 13... Qh5 {[%clk 0:02:51.4]} 14.
Qe2 {[%clk 0:02:36.9]} 14... Qxe2+ {[%clk 0:02:49.2]} 15. Kxe2 {[%clk 0:02:37]}
15... b6 {[%clk 0:02:50.1]} 16. Be3 {[%clk 0:02:33.1]} 16... Bb7 {[%clk
0:02:48.7]} 17. Nd2 {[%clk 0:02:32.1]} 17... O-O {[%clk 0:02:48.1]} 18. f3
{[%clk 0:02:25.9]} 18... Rac8 {[%clk 0:02:45.2]} 19. Bd3 {[%clk 0:02:22.3]}
19... Rfd8 {[%clk 0:02:42]} 20. Rhc1 {[%clk 0:02:15.5]} 20... e5 {[%clk
0:02:33.4]} 21. Bf5 {[%clk 0:02:14]} 21... Rc7 {[%clk 0:02:32.9]} 22. Nb3 {[%clk
0:02:11.9]} 22... Bf6 {[%clk 0:02:20.6]} 23. Rd1 {[%clk 0:02:10.1]} 23... exd4
{[%clk 0:02:13]} 24. cxd4 {[%clk 0:02:08.7]} 24... Re7 {[%clk 0:02:09.1]} 25.
Kf2 {[%clk 0:02:05.9]} 25... Nb4 {[%clk 0:02:08.6]} 26. Bd2 {[%clk 0:01:48]}
26... Nc6 {[%clk 0:01:47.3]} 27. Be3 {[%clk 0:01:43.2]} 27... a5 {[%clk
0:01:41.3]} 28. Rab1 {[%clk 0:01:34]} 28... Nb4 {[%clk 0:01:39.4]} 29. Nc1
{[%clk 0:01:26.2]} 29... g6 {[%clk 0:01:31.2]} 30. Bh3 {[%clk 0:01:17]} 30...
Nd5 {[%clk 0:01:30.1]} 31. Bh6 {[%clk 0:01:15.7]} 31... Nc3 {[%clk 0:01:28.7]}
32. Nb3 {[%clk 0:01:11.7]} 32... Re2+ {[%clk 0:01:23]} 33. Kg1 {[%clk
0:01:09.6]} 33... Nxb1 {[%clk 0:01:21.8]} 34. Rxb1 {[%clk 0:01:09.1]} 34... a4
{[%clk 0:01:22.4]} 35. Nc1 {[%clk 0:00:55.4]} 35... Bxd4+ {[%clk 0:01:21.1]} 36.
Kf1 {[%clk 0:00:55.6]} 36... Rf2+ {[%clk 0:01:19.7]} 37. Ke1 {[%clk 0:00:55.5]}
37... Re8+ {[%clk 0:01:19.9]} 38. Kd1 {[%clk 0:00:53.6]} 38... Bc3 {[%clk
0:01:19]} 39. Nd3 {[%clk 0:00:45.1]} 39... Rd8 {[%clk 0:01:19.1]} 0-1

[Event "Early-Titled-Tuesday-Blitz-September-12-2023"]
[Site "Chess.com"]
[Date "2023.09.12"]
[Round "4"]
[White "LeoLV10"]
[Black "AleksandrAleksikov"]
[Result "1-0"]
[WhiteElo "2499"]
[BlackElo "2276"]
[TimeControl "180+1"]
[EndTime "8:36:50 PDT"]
[Termination "LeoLV10 won on time"]

1. e4 {[%clk 0:03:00.9]} 1... c5 {[%clk 0:02:59.6]} 2. Nf3 {[%clk 0:02:52.1]}
2... d6 {[%clk 0:02:59.3]} 3. d4 {[%clk 0:02:51.4]} 3... Nf6 {[%clk 0:02:59.3]}
4. Nc3 {[%clk 0:02:49.6]} 4... cxd4 {[%clk 0:02:58.1]} 5. Nxd4 {[%clk
0:02:50.5]} 5... a6 {[%clk 0:02:57.9]} 6. Bg5 {[%clk 0:02:49]} 6... Nbd7 {[%clk
0:02:55.8]} 7. Bc4 {[%clk 0:02:45.5]} 7... e6 {[%clk 0:02:48.9]} 8. Qe2 {[%clk
0:02:41.1]} 8... b5 {[%clk 0:02:21.5]} 9. Bb3 {[%clk 0:02:39.2]} 9... Nc5 {[%clk
0:02:20.1]} 10. O-O-O {[%clk 0:02:32.5]} 10... Bb7 {[%clk 0:02:02.7]} 11. e5
{[%clk 0:02:12.7]} 11... h6 {[%clk 0:01:54.8]} 12. Bh4 {[%clk 0:02:01.3]} 12...
g5 {[%clk 0:01:53.3]} 13. exf6 {[%clk 0:02:01.5]} 13... gxh4 {[%clk 0:01:51.4]}
14. Bxe6 {[%clk 0:01:57.3]} 14... Qxf6 {[%clk 0:01:33.6]} 15. Bd5+ {[%clk
0:01:38.3]} 15... Qe5 {[%clk 0:01:09.5]} 16. Bxb7 {[%clk 0:01:32]} 16... Nxb7
{[%clk 0:01:04.6]} 17. Qf3 {[%clk 0:01:29.6]} 17... O-O-O {[%clk 0:01:00.3]} 18.
Qc6+ {[%clk 0:01:24.3]} 18... Kb8 {[%clk 0:00:58.9]} 19. Qxa6 {[%clk 0:01:18.4]}
19... Qc5 {[%clk 0:00:15.6]} 20. Nc6+ {[%clk 0:01:05.4]} 20... Kc7 {[%clk
0:00:14.4]} 21. Nd5+ {[%clk 0:01:03.4]} 1-0